Cogmind - Beta 13 X2 @@@ ROGUE MODE // 2024.01.16 @ 17:28:06 Player: Decinym Result: Destroyed by Y3-Q7N(R) with Subdweller Beam Cannon Performance ------------- Evolutions (0) 0 Regions Visited (3) 600 Robots Destroyed (16) 80 Value Destroyed (489) 489 Prototype IDs (1) 20 Alien Tech Used (0) 0 Bonus (0) 0 TOTAL SCORE: 1189 Bonus ------- None Cogmind --------- Core Integrity 0/250 Matter 259/300 Energy 138/160 System Corruption 0% Temperature Warm (117) Movement Walking (330) Ox3 Location -10/Subcaves Parts ------- > --- POWER (1) -------- Light Nuclear Core > --- PROPULSION (2) --- Light Treads Aluminum Leg > --- UTILITY (2) ------ Disposable Heat Sink Large Storage Unit > --- WEAPON (2) ------- Subdweller Laser Subdweller Laser > --- INVENTORY (15) --- Ion Engine Wheel Huge Storage Unit Huge Storage Unit High-capacity Matter Pod (200) Structural Scanner Structural Scanner Experimental Sensor Array Scrap Shield Barrage Gun Battle Cannon Grenade Launcher Scrap Shield Fragment (46) Peak State ------------ > --- POWER ------------ Light Nuclear Core > --- PROPULSION ------- Light Treads Light Treads > --- UTILITY ---------- Large Storage Unit Experimental Sensor Array > --- WEAPON ----------- Subdweller Machine Gun Barrage Gun > --- INVENTORY -------- Ion Engine Aluminum Leg Wheel Huge Storage Unit Huge Storage Unit High-capacity Matter Pod Structural Scanner Structural Scanner Scrap Shield Battle Cannon Grenade Launcher Scrap Shield Fragment [Rating: 21] Favorites ----------- Power Light Nuclear Core Engine Ion Engine Power Core Light Nuclear Core Propulsion Light Treads Treads Light Treads Leg Aluminum Leg Utility Large Storage Unit Device Improved Heat Sink Storage Large Storage Unit Weapon Small Laser Energy Gun Small Laser Energy Cannon Subdweller Beam Cannon Ballistic Gun Barrage Gun Ballistic Cannon Light Cannon Build | -11 -10 -10 -10 ------- Run | Yrd Mat Min Sub Slots Evolved . | . . . . Power . | . . . . Propulsion . | . . . . Utility . | . . . . Weapon . | . . . . Parts Attached 16 | . 3 4 9 Power 1 | . . 1 . Engine . | . . . . Core 1 | . . 1 . Reactor . | . . . . Propulsion 3 | . . 2 1 Treads 2 | . . 2 . Leg 1 | . . . 1 Wheel . | . . . . Hover . | . . . . Flight . | . . . . Utility 4 | . 2 . 2 Device 3 | . 1 . 2 Storage 1 | . 1 . . Processor . | . . . . Hackware . | . . . . Protection . | . . . . Artifact . | . . . . Weapon 8 | . 1 1 6 Energy Gun 3 | . 1 . 2 Energy Cannon 1 | . . . 1 Ballistic Gun 3 | . . . 3 Ballistic Cannon 1 | . . 1 . Launcher . | . . . . Special Weapon . | . . . . Impact Weapon . | . . . . Slashing Weapon . | . . . . Piercing Weapon . | . . . . Special Melee Weapon . | . . . . Unidentified Prototypes 1 | . . . 1 Parts Lost 4 | . 1 1 2 Power . | . . . . Propulsion 1 | . . . 1 Utility 1 | . . . 1 Weapon 2 | . 1 1 . Highest Loss Streak 1 | . 1 1 1 To Critical Strikes . | . . . . Average Slot Usage (%) 98 | . 92 99 99 Engine 5 | . 14 7 . Core 8 | . . 6 14 Treads 24 | . . 27 27 Leg 3 | . 28 . . Device 12 | . 3 14 13 Storage 14 | . 17 14 14 Energy Gun 11 | . 18 14 6 Energy Cannon 1 | . . . 2 Ballistic Gun 7 | . 9 . 17 Ballistic Cannon 7 | . . 13 1 Naked Turns . | . . . . Heaviest Build 38 | 14 34 30 38 Greatest Support 40 | 20 20 40 40 Greatest Overweight (x) 1 | . 1 . . Average Overweight (x) . | . . . . Largest Inventory Capacity 15 | . 15 15 15 Average Capacity 14 | . 14 15 15 Most Carried 15 | . 11 13 15 Average Carried 12 | . 8 11 14 Final Capacity 15 | 8 15 15 15 Final Carried 14 | 6 11 13 14 Class Distribution -------------------- 87% | Mutant 12% | Subdweller-Mutant Dominant Class ---------------- Mutant | -10/Materials Mutant | -10/Mines Mutant | -10/Subcaves Resources | -11 -10 -10 -10 ----------- Run | Yrd Mat Min Sub Matter Collected 664 | 200 111 240 113 Remotely . | . . . . Salvage Created 555 | . 148 129 278 Parts 44 | . 15 10 19 Haulers Intercepted . | . . . . Recyclers Shooed 1 | . . 1 . Parts Field Recycled . | . . . . Retrieved Matter . | . . . . Parts Self-Destructed 1 | . . . 1 Prevented . | . . . . Kills | -11 -10 -10 -10 ------- Run | Yrd Mat Min Sub Combat Hostiles Destroyed 18 | . 5 6 7 Guns 11 | . 3 3 5 Cannons 5 | . . 3 2 AOE 2 | . 2 . . Classes Destroyed 6 | . 3 1 2 Builder 2 | . 1 1 . Swarmer 3 | . 3 . . Grunt 5 | . 2 2 1 Artisan 1 | . . . 1 Subdweller 6 | . . . 6 Assembled 4 | . . 4 . Best Kill Streak 6 | . 6 2 2 Combat Bots Only 5 | . 5 2 2 Max Kills in Single Turn 2 | . 2 1 1 Gunslinging . | . . . . Exploded 2 | . 2 . . Melee . | . . . . Uniques/NPCs Destroyed . | . . . . Combat | -11 -10 -10 -10 -------- Run | Yrd Mat Min Sub Hostile Shots Fired 102 | . 39 26 37 Missed 31 | . 11 11 9 Damage Taken 1166 | . 315 198 653 Core 261 | . 59 42 160 Absorbed by Shields . | . . . . Core Remaining (%) 100 | 100 . . . Volleys Fired 57 | . 13 21 23 Largest 2 | . 2 2 2 Hottest 120 | . 80 80 120 Shots Fired 112 | . 26 42 44 Gun 87 | . 26 25 36 Cannon 25 | . . 17 8 Launcher . | . . . . Special . | . . . . Kinetic 50 | . 9 17 24 Thermal 45 | . 4 21 20 Explosive . | . . . . Electromagnetic 17 | . 13 4 . Robot Hit Streak 8 | . 6 5 8 Robot Miss Streak 6 | . 2 6 1 Penetration Max . | . . . . Secondary Targets 4 | . 2 . 2 Max Gunslinging Chain 1 | . 1 . 1 Shots Hit Robots 70 | . 19 20 31 Core Hits 35 | . 10 12 13 Critical Kills . | . . . . Critical Parts Destroyed . | . . . . Critical Strikes 1 | . . . 1 Blast 1 | . . . 1 Melee Attacks . | . . . . Impact . | . . . . Slashing . | . . . . Piercing . | . . . . Sneak Attacks . | . . . . Combat Hostiles . | . . . . Follow-up Attacks . | . . . . Damage Inflicted 1323 | . 299 373 651 Guns 909 | . 207 148 554 Cannons 304 | . . 207 97 Explosions 92 | . 92 . . Melee . | . . . . Ramming 18 | . . 18 . Kinetic 617 | . 72 207 338 Thermal 533 | . 115 105 313 Explosive . | . . . . Electromagnetic 155 | . 112 43 . Impact . | . . . . Slashing . | . . . . Piercing . | . . . . Highest Corruption . | . . . . Average Corruption . | . . . . Corruption Purged . | . . . . Corruption Blocked . | . . . . Overload Shots . | . . . . Overflow Damage 5 | . . 5 . Projectiles 5 | . . 5 . Explosions . | . . . . Melee . | . . . . Knockbacks 4 | . . 4 . Impact . | . . . . Kinetic 4 | . . 4 . Secondary . | . . . . Self-Inflicted Damage 32 | . 32 . . Shots 1 | . 1 . . Rammed 2 | . . 2 . Targets Rammed 2 | . . 2 . Kicked . | . . . . Crushed . | . . . . Highest Temperature 149 | . 149 33 120 Average Temperature 67 | . 89 16 55 Received Heat Transfer 482 | . 129 161 192 Siege Activations . | . . . . Robots Corrupted . | . . . . Combat Hostiles . | . . . . Parts Fried . | . . . . Impact Corruptions . | . . . . Robots Melted . | . . . . Combat Hostiles . | . . . . Parts Melted . | . . . . Heat Transferred 761 | . 150 225 386 Parts Sabotaged . | . . . . Parts Stolen . | . . . . Parts Stripped . | . . . . Power Chain Reactions 1 | . 1 . . Missiles Intercepted . | . . . . Alert | -11 -10 -10 -10 ------- Run | Yrd Mat Min Sub Peak Influence 129 | . 129 109 . Initial 49 | . . 49 . Average 37 | . 53 33 . Maximum Alert Level . | . . . . Low Security (%) 100 | . 100 100 . Level 1 . | . . . . Level 2 . | . . . . Level 3 . | . . . . Level 4 . | . . . . Level 5 . | . . . . High Security . | . . . . Max Security . | . . . . Squads Dispatched 1 | . 1 . . Investigation . | . . . . Extermination . | . . . . Reinforcement 1 | . 1 . . Assault . | . . . . Garrison . | . . . . Intercept . | . . . . Searches Triggered . | . . . . Construction Impeded . | . . . . Haulers Reinforced . | . . . . Active Scanning Responses . | . . . . Cargo Convoy Interrupts . | . . . . Stealth | -11 -10 -10 -10 --------- Run | Yrd Mat Min Sub Distress Signals . | . . . . Communications Jammed . | . . . . Distress Signals . | . . . . Times Spotted 25 | . 8 7 10 Peak Tracking Total 5 | . 5 2 3 Tactical Retreats 2 | . . 1 1 Traps | -11 -10 -10 -10 ------- Run | Yrd Mat Min Sub Traps Triggered . | . . . . Indirectly . | . . . . Trap Hack Attempts . | . . . . Triggered . | . . . . Disarmed . | . . . . Reprogrammed . | . . . . Reused . | . . . . Traps Extracted . | . . . . Installed . | . . . . Triggered . | . . . . Machines | -11 -10 -10 -10 ---------- Run | Yrd Mat Min Sub Machines Disabled . | . . . . Max in Single Turn . | . . . . Machines Repaired . | . . . . Machines Dismantled . | . . . . Machines Sabotaged . | . . . . Overloaded Fab Kills . | . . . . Hacking | -11 -10 -10 -10 --------- Run | Yrd Mat Min Sub Machines Accessed 2 | . 1 . 1 Terminals 1 | . 1 . . Fabricators . | . . . . Repair Stations . | . . . . Recycling Units . | . . . . Scanalyzers . | . . . . Garrison Access . | . . . . Total Hacks 6 | . 4 . 2 Successful 5 | . 3 . 2 Failed 1 | . 1 . . Catastrophic . | . . . . Database Lockouts . | . . . . Manual 1 | . 1 . . Terminals 4 | . 4 . . Fabricators . | . . . . Repair Stations . | . . . . Recycling Units . | . . . . Scanalyzers . | . . . . Garrison Access . | . . . . Terminal Hacks 4 | . 2 . 2 Record 2 | . . . 2 Robot Analysis 1 | . 1 . . Branch Access Points 1 | . 1 . . Fabricator Hacks . | . . . . Repair Station Hacks . | . . . . Recycling Unit Hacks . | . . . . Scanalyzer . | . . . . Garrison Access Hacks . | . . . . Unauthorized Hacks 1 | . 1 . . Terminals 1 | . 1 . . Botnet 1 | . 1 . . Fabricators . | . . . . Repair Stations . | . . . . Recycling Units . | . . . . Scanalyzers . | . . . . Garrison Access . | . . . . Data Cores Recovered . | . . . . Used . | . . . . Hacking Detections 1 | . 1 . . Full Trace Events . | . . . . Feedback Events . | . . . . Feedback Blocked . | . . . . Robot Schematics Acquired . | . . . . Robots Built . | . . . . Authchips . | . . . . Time . | . . . . Total Robot Build Rating . | . . . . Part Schematics Acquired . | . . . . Parts Built . | . . . . Authchips . | . . . . Time . | . . . . Total Part Build Rating . | . . . . Parts Repaired . | . . . . Time . | . . . . Parts Recycled . | . . . . Recycled Matter . | . . . . Retrieved Matter . | . . . . Retrieved Components . | . . . . Parts Scanalyzed . | . . . . Part Schematics Acquired . | . . . . Parts Damaged . | . . . . Bothacking | -11 -10 -10 -10 ------------ Run | Yrd Mat Min Sub Used RIF Installer . | . . . . Robots Hacked . | . . . . Non-combat . | . . . . Combat . | . . . . Robot Hacks Applied . | . . . . Relay Couplers Released . | . . . . Fabnet Peak Effective % . | . . . . Robots Rewired . | . . . . Allies Hacked . | . . . . Hacks Repelled . | . . . . Allies | -11 -10 -10 -10 -------- Run | Yrd Mat Min Sub Total Allies . | . . . . Largest Group . | . . . . Highest-Rated Group . | . . . . Highest-Rated Ally . | . . . . Total Orders . | . . . . Ally Attacks . | . . . . Total Damage . | . . . . Kills . | . . . . Allies Corrupted . | . . . . Allies Melted . | . . . . Intel | -11 -10 -10 -10 ------- Run | Yrd Mat Min Sub Robot Analysis Total 1 | . 1 . . Derelict Logs Recovered 2 | . . 1 1 Drone Launches . | . . . . Drone Recoveries . | . . . . Exploration | -11 -10 -10 -10 ------------- Run | Yrd Mat Min Sub Turns Passed 2371 | . 268 1207 896 Spaces Moved 1189 | 1 120 571 497 Core . | . . . . Treads 1068 | . . 571 497 Legs 121 | 1 120 . . Wheels . | . . . . Hover . | . . . . Flight . | . . . . Fastest Speed 120 | 120 120 160 160 Average Speed 162 | 120 180 160 160 Slowest Speed 190 | 120 190 160 160 Overloaded Moves . | . . . . Propulsion Burnouts . | . . . . Robots Hopped . | . . . . Cave-ins Triggered . | . . . . Exploration Rate (%) 40 | 2 21 99 38 Regions Visited 3 Branch Regions 2 Pre-discovered Areas 3 | . . 1 2 Known Exits Taken 1 | . 1 . . Unknown Exits Taken 2 | 1 . 1 . Scrap Searched 5 | . . 2 3 Spaces Dug . | . . . . Terrain Destroyed 4 | . 2 . 2 Melee . | . . . . Projectile 2 | . . . 2 AOE 2 | . 2 . . Terrain Rammed . | . . . . Walls Destroyed . | . . . . Machines Disabled . | . . . . Actions | -11 -10 -10 -10 --------- Run | Yrd Mat Min Sub Total 1526 | . 145 823 558 Wait 230 | . 3 214 13 Move 1186 | . 119 570 497 Hop . | . . . . Pick Up 18 | . 6 7 5 Fast Attach 7 | . 2 . 5 Attach 8 | . 1 3 4 Detach 3 | . . . 3 Swap 1 | . . 1 . Drop 14 | . 1 5 8 Fire 57 | . 13 21 23 Melee . | . . . . Ram . | . . . . Kick . | . . . . Crush 2 | . . 2 . Escape Stasis . | . . . . Rewire . | . . . . Trap . | . . . . Miscellaneous . | . . . . Route ------- -11/Scrapyard -10/Materials (discovered 2 exits: *Min x2) -10/Mines (discovered 3 exits: [*Mat x2] / *Sub) -10/Subcaves History --------- Turn | Location | Event 1 | -11/Scrapyard | Discovered new exit (range 0) 1 | -11/Scrapyard | Entered Materials 93 | -10/Materials | Identified exit to Mines 269 | -10/Materials | Entered Mines 317 | -10/Mines | Assembled infested the area 318 | -10/Mines | Build established: Mutant 428 | -10/Mines | Discovered new exit (range 5) 832 | -10/Mines | Learned location of Zion (-7) 968 | -10/Mines | Discovered new exit (range 4) 1145 | -10/Mines | Found a damaged Exp. Sensor Array with a note attached 1148 | -10/Mines | Found Prototype Device 1456 | -10/Mines | Discovered new exit (range 5) 1476 | -10/Mines | Entered Subcaves 1517 | -10/Subcaves | Disturbed a concealed Subdweller 1923 | -10/Subcaves | Visited Clippyterm 1927 | -10/Subcaves | Learned location of Deep Caves (-7) 2129 | -10/Subcaves | Ambushed by Subdwellers from Twisted Machinery 2153 | -10/Subcaves | Identified Exp. Sensor Array 2225 | -10/Subcaves | Learned location of Recycling (-8) 2298 | -10/Subcaves | A swath of the cavern ceiling suddenly collapsed 2355 | -10/Subcaves | Core integrity fell below 50% 2365 | -10/Subcaves | Core integrity fell below 20% 2372 | -10/Subcaves | Destroyed by Y3-Q7N(R) with Subdweller Beam Cannon Last Messages --------------- 02144_ 47-KQY(R) destroyed. 02152_ Dropped Lgt. Cannon. 02153_ Identified Exp. Sensor Array. 02155_ Acquired Sub. Laser. 02164_ Acquired 9 matter. 02175_ Acquired Disposable Heat Sink. 02193_ Dropped Sub. Machine Gun. 02193_ Acquired Sub. Laser. 02195_ Acquired 26 matter. 02225_ Acquired derelict log, extracted data. World map updated: -8/Recycling. 02298_ Y-45 Defender crushed by falling debris. 02298_ Y-45 Defender system corrupted by crushing effect. A swath of the cavern ceiling suddenly collapses. 02298_ Y-45 Defender system terminally corrupted. 02331_ N2-IVY(z): "She is not going to be happy we haven't found any suitable candidates yet." 02364_ Lgt. Treads destroyed. 02368_ YP-JKD(R) destroyed. 02368_ Switching to secondary target: Y3-Q7N(R). Map ----- +----------------------------------------------------+ | ##???##?????????????????????????????????????? | | ## ##### ##????????????????????????????????????? | | ## #????????????????????????????????????? | | ?## ##????????????????????????????????????? | | ### #?????????????????????????????????????? | | # #????##???????????????????????????????? | | ## #???# ##??###?????????????????????????? | | ?## #??# #?? ????????????????????????? | | ?# # ### #?? ????????????????????????? | | ### ### ##?? ????????????????????????? | | ## ## #?# ????????????????????????? | | ### ## ## ###??????????????????????? | | #?# # # #??????????????????????? | | # ###?# ## ### #??????????????????????? | | ####???## " #?# #??????????????????????? | | ####??#####" ##?# ###????????????????????? | | # ## #%##"# ##?# ## #????????????????????? | | #" ###"" ##"#?# ## #????????????????????? | | "##"""##""##??# #??????###????????????? | | ##""###"""##?### #?????? ## ??????????? | | ####"""##"#??# #?????? ???????????? | | ##?##""#""##### #####?? ???????????? | | ###?##"##""##;## ### ## """ #????????????? | | ????## ""#""# ## R "#?????????????? | | ????##"""#" ## =%* #????????????? | | ?????### ## #### @ # #?????????????? | | ??????##?## #??# ###;## ""????????? | | ???????????# #?# ##?###?? # ##"????????? | | ???????????# #??????? ##????????????? | | ???????????## #????????## #?????????????? | | ????????????## ??????????# ????????????? | | ?????????????# ???????????## ???????????? | | ?????????????## ?????????????? #??????????? | | ??????????????## ??????????????"#??????????? | | ???????????????# ## ????????????????????????? | | ??????????????? #? #???????????????????????? | | ?????????????? ?? ????????????????????????? | | ??????????????? ?? ????????????????????????? | | ???????????????? ????????????????????????????? | | ????????????????? ????????????????????????????? | | ?????????????????????????????????????????????????? | | ?????????????????????????????????????????????????? | | ?????????????????????????????????????????????????? | | ?????????????????????????????????????????????????? | | ?????????????????????????????????????????????????? | | ?????????????????????????????????????????????????? | | ?????????????????????????????????????????????????? | | ?????????????????????????????????????????????????? | | ?????????????????????????????????????????????????? | | ?????????????????????????????????????????????????? | +----------------------------------------------------+ Best States ------------- Heat Dissipation 39 Coolant Potential 50 Energy Generation 14 Energy Capacity 250 Matter Stores 300 Matter Capacity 300 Sight Range 16 Terrain Scan Density 10 Evasion (%) 55 Recoil Reduction 2 Item Schematics ----------------- None Robot Schematics ------------------ None Fabricated ------------ Nothing Alien Tech Used ----------------- None Achievements -------------- None Challenges ------------ None Game ------ Seed FactoryHugeVibroblade Manual? 0 Play Time 00:13:46 Cumulative 363.7 hours Start 2024.01.16 @ 17:18:34 End 2024.01.16 @ 17:28:06 Sessions 1 Manual Loads 0 Difficulty Rogue Special Mode None Game No. 386 Rogue 386 Adventurer 0 Explorer 0 Win Type - Total 29 Types 16/3/4/1/2/0/3/0/0 Lore% 86 Gallery% 87 Achievement% 82 Wizard Run 0 Options --------- ASCII 0 Keyboard 0 Movement Arrows Keybinds 0 Fullscreen 2 Font 24/Smallcaps Map View 76x50 Zoom Use 0% Tactical HUD 1 Map Filters NONE Filters NONE Steam 1 RUN: cd3d8484-a3c0-4dd2-bd38-09aa65e6bcd0